fUST/lending_fUST_20250601
["ID","MTS","AMOUNT","RATE_DAILY","PERIOD"]
[363463717,1748731833139,-430.0,0.00016438,2]
[363463719,1748731833149,-303.49,0.00016438,2]
[363463721,1748731833159,-404.02215706,0.00016438,2]
[363463723,1748731833169,-430.0,0.00016438,2]
[363463725,1748731833179,-430.0,0.00016438,2]
[363463727,1748731833189,-430.0,0.00016438,2]
[363463729,1748731833199,-430.0,0.00016438,2]
[363463731,1748731833209,-547.54182785,0.00016438,2]
[363463733,1748731833218,-430.0,0.00016438,2]
[363463735,1748731833228,-373.52021058,0.00016438,2]
[363463737,1748731833238,-430.0,0.00016438,2]
[363463739,1748731833247,-430.0,0.00016438,2]
[363463741,1748731833257,-430.0,0.00016438,2]
[363463743,1748731833266,-430.0,0.00016438,2]
[363463745,1748731833276,-430.0,0.00016438,2]
[363463747,1748731833285,-509.7678836,0.00016438,2]
[363463749,1748731833294,-430.0,0.00016438,2]
[363463751,1748731833303,-430.0,0.00016438,2]
[363463753,1748731833313,-390.93234264,0.00016438,2]
[363463755,1748731833322,-430.0,0.00016438,2]
[363463757,1748731833331,-375.2185052,0.00016438,2]
[363463759,1748731833341,-430.0,0.00016438,2]
[363463761,1748731833349,-470.0,0.00016438,2]
[363463763,1748731833359,-332.31697522,0.00016438,2]
[363463765,1748731833369,-430.0,0.00016438,2]
[363463767,1748731833378,-450.0,0.00016438,2]
[363463769,1748731833387,-430.0,0.00016438,2]
[363463771,1748731833396,-461.22,0.00016438,2]
[363463773,1748731833406,-430.0,0.00016438,2]
[363463775,1748731833415,-430.0,0.00016438,2]
[363463777,1748731833425,-430.0,0.00016438,2]
[363463779,1748731833434,-430.0,0.00016438,2]
[363463781,1748731833444,-430.0,0.00016438,2]
[363463783,1748731833454,-430.0,0.00016438,2]
[363463785,1748731833464,-443.07922437,0.00016438,2]
[363463787,1748731833473,-430.0,0.00016438,2]
[363463788,1748731833482,-430.0,0.00016438,2]
[363463789,1748731833491,-430.0,0.00016438,2]
[363463790,1748731833501,-430.0,0.00016438,2]
[363463791,1748731833510,-430.0,0.00016438,2]
[363463793,1748731833520,-430.0,0.00016438,2]
[363463795,1748731833531,-430.0,0.00016438,2]
[363463798,1748731833540,-430.0,0.00016438,2]
[363463800,1748731833550,-430.0,0.00016438,2]
[363463801,1748731833559,-430.0,0.00016438,2]
[363463803,1748731833569,-430.0,0.00016438,2]
[363463806,1748731833579,-430.0,0.00016438,2]
[363463807,1748731833588,-430.0,0.00016438,2]
[363463810,1748731833597,-1000.0,0.00016438,2]
[363463812,1748731833607,-516.88429869,0.00016438,2]
[363463814,1748731833616,-558.37,0.00016438,2]
[363463816,1748731833626,-430.0,0.00016438,2]
[363463818,1748731833636,-535.66,0.00016438,2]
[363463820,1748731833646,-430.0,0.00016438,2]
[363463822,1748731833657,-430.0,0.00016438,2]
[363463823,1748731833666,-430.0,0.00016438,2]
[363463824,1748731833675,-430.0,0.00016438,2]
[363463825,1748731833684,-430.0,0.00016438,2]
[363463826,1748731833694,-430.0,0.00016438,2]
[363463827,1748731833704,-430.0,0.00016438,2]
[363463828,1748731833712,-430.0,0.00016438,2]
[363463829,1748731833722,-748.85,0.00016438,2]
[363463830,1748731833731,-846.06,0.00016438,2]
[363463831,1748731833740,-430.0,0.00016438,2]
[363463832,1748731833749,-450.0,0.00016438,2]
[363463833,1748731833759,-424.27285031,0.00016438,2]
[363463834,1748731833768,-407.05376416,0.00016438,2]
[363463835,1748731833777,-430.0,0.00016438,2]
[363463836,1748731833786,-430.0,0.00016438,2]
[363463837,1748731833794,-207.6195247,0.00016438,2]
[363463838,1748731833803,-430.0,0.00016438,2]
[363463839,1748731833813,-450.0,0.00016438,2]
[363463840,1748731833822,-430.0,0.00016438,2]
[363463841,1748731833831,-450.0,0.00016438,2]
[363463842,1748731833840,-279.97918446,0.00016438,2]
[363463843,1748731833849,-451.20599261,0.00016438,2]
[363463844,1748731833858,-1376.62,0.00016438,2]
[363463845,1748731833868,-430.0,0.00016438,2]
[363463846,1748731833878,-430.0,0.00016438,2]
[363463848,1748731833887,-1359.28,0.00016438,2]
[363463849,1748731833896,-430.0,0.00016438,2]
[363463851,1748731833906,-430.0,0.00016438,2]
[363463853,1748731833915,-430.0,0.00016438,2]
[363463855,1748731833925,-430.0,0.00016438,2]
[363463857,1748731833934,-430.0,0.00016438,2]
[363463859,1748731833944,-430.0,0.00016438,2]
[363463861,1748731833954,-451.05281378,0.00016438,2]
[363463863,1748731833963,-430.0,0.00016438,2]
[363463865,1748731833973,-430.0,0.00016438,2]
[363463867,1748731833982,-430.0,0.00016438,2]
[363463869,1748731833992,-450.0,0.00016438,2]
[363463871,1748731834001,-430.0,0.00016438,2]
[363463873,1748731834011,-450.0,0.00016438,2]
[363463875,1748731834021,-430.0,0.00016438,2]
[363463877,1748731834031,-430.0,0.00016438,2]
[363463879,1748731834040,-430.0,0.00016438,2]
[363463881,1748731834050,-430.0,0.00016438,2]
[363463883,1748731834059,-430.0,0.00016438,2]
[363463885,1748731834069,-430.0,0.00016438,2]
[363463887,1748731834078,-450.0,0.00016438,2]
[363463889,1748731834088,-350.80488444,0.00016438,2]
[363463891,1748731834097,-539.12081235,0.00016438,2]
[363463893,1748731834107,-430.0,0.00016438,2]
[363463895,1748731834116,-328.38499026,0.00016438,2]
[363463898,1748731834132,-101.61500974,0.00016438,2]
[363463900,1748731834141,-451.08331362,0.00016438,2]
[363463902,1748731834150,-147.15767664,0.00016438,2]
[363463904,1748731834161,-1709.78232336,0.00016438,2]
[363463906,1748731834171,-450.0,0.00016438,2]
[363463908,1748731834181,-634.74,0.00016438,2]
[363463910,1748731834192,-450.0,0.00016438,2]
[363463912,1748731834203,-430.0,0.00016438,2]
[363463914,1748731834213,-450.0,0.00016438,2]
[363463916,1748731834222,-430.0,0.00016438,2]
[363463918,1748731834232,-430.0,0.00016438,2]
[363463920,1748731834241,-430.0,0.00016438,2]
[363463922,1748731834251,-430.0,0.00016438,2]
[363463924,1748731834260,-430.0,0.00016438,2]
[363463926,1748731834269,-430.0,0.00016438,2]
[363463928,1748731834279,-400.0,0.00016438,2]
[363463930,1748731834288,-430.0,0.00016438,2]
[363463932,1748731834298,-430.0,0.00016438,2]
[363463934,1748731834307,-400.0,0.00016438,2]
[363463936,1748731834316,-430.0,0.00016438,2]
[363463938,1748731834326,-224.09144544,0.00016438,2]
[363464257,1748731837878,-205.90855456,0.00016438,2]
[363464258,1748731837888,-447.84,0.00016438,2]
[363464259,1748731837897,-430.0,0.00016438,2]
[363464260,1748731837907,-434.33,0.00016438,2]
[363464261,1748731837917,-420.50975044,0.00016438,2]
[363464262,1748731837926,-430.0,0.00016438,2]
[363464263,1748731837936,-430.0,0.00016438,2]
[363464264,1748731837946,-430.0,0.00016438,2]
[363464265,1748731837956,-430.0,0.00016438,2]
[363464266,1748731837966,-116.471907,0.00016438,2]
[363464267,1748731837982,-313.528093,0.00016438,2]
[363464268,1748731837991,-430.0,0.00016438,2]
[363464269,1748731838001,-430.0,0.00016438,2]
[363464270,1748731838011,-450.0,0.00016438,2]
[363464271,1748731838022,-430.0,0.00016438,2]
[363464272,1748731838031,-666.58,0.00016438,2]
[363464273,1748731838040,-430.0,0.00016438,2]
[363464274,1748731838050,-430.0,0.00016438,2]
[363464275,1748731838060,-430.0,0.00016438,2]
[363464276,1748731838070,-474.00373426,0.00016438,2]
[363464277,1748731838079,-430.0,0.00016438,2]
[363464278,1748731838089,-430.0,0.00016438,2]
[363464279,1748731838098,-430.0,0.00016438,2]
[363464280,1748731838109,-430.0,0.00016438,2]
[363464281,1748731838118,-430.0,0.00016438,2]
[363464282,1748731838127,-457.35,0.00016438,2]
[363464284,1748731838138,-290.13,0.00016438,2]
[363464285,1748731838148,-490.0,0.00016438,2]
[363464286,1748731838158,-430.0,0.00016438,2]
[363464287,1748731838168,-430.0,0.00016438,2]
[363464288,1748731838177,-430.0,0.00016438,2]
[363464289,1748731838187,-430.0,0.00016438,2]
[363464290,1748731838197,-430.0,0.00016438,2]
[363464291,1748731838207,-740.72,0.00016438,2]
[363464292,1748731838217,-430.0,0.00016438,2]
[363464293,1748731838226,-430.0,0.00016438,2]
[363464294,1748731838236,-430.0,0.00016438,2]
[363464295,1748731838246,-469.94,0.00016438,2]
[363464296,1748731838370,-475.51500222,0.00016438,2]
[363464297,1748731838380,-447.92,0.00016438,2]
[363464298,1748731838390,-430.0,0.00016438,2]
[363464299,1748731838400,-430.0,0.00016438,2]
[363464300,1748731838410,-430.0,0.00016438,2]
[363464301,1748731838420,-430.0,0.00016438,2]
[363464302,1748731838429,-903.79,0.00016438,2]
[363464303,1748731838439,-430.0,0.00016438,2]
[363464304,1748731838453,-420.0,0.00016438,2]
[363464305,1748731838463,-430.0,0.00016438,2]
[363464306,1748731838484,-488.68,0.00016438,2]
[363464307,1748731838493,-428.81033719,0.00016438,2]
[363464308,1748731838503,-585.11,0.00016438,2]
[363464309,1748731838514,-430.0,0.00016438,2]
[363464310,1748731838523,-430.0,0.00016438,2]
[363464311,1748731838533,-473.51014504,0.00016438,2]
[363464312,1748731838544,-430.0,0.00016438,2]
[363464313,1748731838554,-430.0,0.00016438,2]
[363464314,1748731838564,-430.0,0.00016438,2]
[363464315,1748731838574,-580.16,0.00016438,2]
[363464316,1748731838584,-430.0,0.00016438,2]
[363464317,1748731838594,-1165.58,0.00016438,2]
[363464318,1748731838604,-430.0,0.00016438,2]
[363464319,1748731838613,-430.0,0.00016438,2]
[363464320,1748731838622,-430.0,0.00016438,2]
[363464321,1748731838632,-370.0,0.00016438,2]
[363464322,1748731838642,-430.0,0.00016438,2]
[363464323,1748731838651,-430.0,0.00016438,2]
[363464324,1748731838661,-430.0,0.00016438,2]
[363464325,1748731838670,-430.0,0.00016438,2]
[363464326,1748731838679,-430.0,0.00016438,2]
[363464327,1748731838689,-430.0,0.00016438,2]
[363464328,1748731838699,-430.0,0.00016438,2]
[363464329,1748731838708,-430.0,0.00016438,2]
[363464330,1748731838717,-430.0,0.00016438,2]
[363464331,1748731838727,-430.0,0.00016438,2]
[363464332,1748731838736,-430.0,0.00016438,2]
[363464333,1748731838746,-430.0,0.00016438,2]
[363464334,1748731838756,-1165.48,0.00016438,2]
[363464335,1748731838766,-930.11,0.00016438,2]
[363464336,1748731838775,-500.0,0.00016711,2]
[363464337,1748731838785,-339.258186,0.00016712,2]
[363464338,1748731838795,-339.258186,0.00016712,2]
[363464339,1748731838805,-430.0,0.00016712,2]
[363464340,1748731838815,-430.0,0.00016712,2]
[363464341,1748731838825,-430.0,0.00016712,2]
[363464342,1748731838834,-430.0,0.00016712,2]
[363464343,1748731838844,-430.0,0.00016712,2]
[363464344,1748731838853,-430.0,0.00016712,2]
[363464345,1748731838863,-489.83886446,0.00016712,2]
[363464346,1748731838875,-440.0,0.00016712,2]
[363464347,1748731838892,-430.0,0.00016712,2]
[363464348,1748731838902,-430.0,0.00016712,2]
[363464349,1748731838911,-152.96196229,0.00016712,2]
[363464350,1748731838921,-430.0,0.00016712,2]
[363464351,1748731838930,-430.0,0.00016712,2]
[363464352,1748731838941,-430.0,0.00016712,2]
[363464353,1748731838951,-573.68,0.00016712,2]
[363464355,1748731838962,-430.0,0.00016712,2]
[363464357,1748731838972,-430.0,0.00016712,2]
[363464359,1748731838981,-430.0,0.00016712,2]
[363464361,1748731838990,-430.0,0.00016712,2]
[363464363,1748731839000,-430.0,0.00016712,2]
[363464365,1748731839009,-430.0,0.00016712,2]
[363464367,1748731839019,-430.0,0.00016712,2]
[363464369,1748731839028,-430.0,0.00016712,2]
[363464371,1748731839037,-430.0,0.00016712,2]
[363464373,1748731839047,-430.0,0.00016712,2]
[363464375,1748731839057,-430.0,0.00016712,2]
[363464377,1748731839066,-334.4738317,0.00016712,2]
[363464379,1748731839076,-161.13175165,0.00016712,2]
[363464381,1748731839085,-188.83160997,0.00016712,2]
[363464383,1748731839095,-557.60716752,0.00016712,2]
[363464385,1748731839104,-360.0,0.00016712,2]
[363464387,1748731839113,-430.0,0.00016712,2]
[363464389,1748731839123,-430.0,0.00016712,2]
[363464392,1748731839132,-460.0,0.00016712,2]
[363464393,1748731839141,-470.0,0.00016712,2]
[363464395,1748731839152,-430.0,0.00016712,2]
[363464399,1748731839172,-1376.62,0.00016712,2]
[363464401,1748731839183,-430.0,0.00016712,2]
[363464403,1748731839193,-1359.28,0.00016712,2]
[363464405,1748731839203,-430.0,0.00016712,2]
[363464407,1748731839213,-430.0,0.00016712,2]
[363464409,1748731839223,-430.0,0.00016712,2]
[363464411,1748731839234,-470.0,0.00016712,2]
[363464413,1748731839244,-430.0,0.00016712,2]
[363464415,1748731839253,-430.0,0.00016712,2]
[363464417,1748731839263,-430.0,0.00016712,2]
[363464419,1748731839273,-430.0,0.00016712,2]
[363464421,1748731839282,-430.0,0.00016712,2]
[363464423,1748731839292,-430.0,0.00016712,2]
[363464425,1748731839304,-214.62,0.00016712,2]
[363464427,1748731839313,-1856.94,0.00016712,2]
[363464429,1748731839323,-634.74,0.00016712,2]
[363464431,1748731839333,-430.0,0.00016712,2]
[363464433,1748731839343,-434.33,0.00016712,2]
[363464435,1748731839352,-430.0,0.00016712,2]
[363464437,1748731839362,-203.51,0.00016712,2]
[363464439,1748731839372,-258.54120297,0.00016712,2]
[363464441,1748731839382,-430.0,0.00016712,2]
[363464443,1748731839391,-666.58,0.00016712,2]
[363464445,1748731839401,-430.0,0.00016712,2]
[363464447,1748731839412,-457.35,0.00016712,2]
[363464449,1748731839422,-430.0,0.00016712,2]
[363464452,1748731839431,-430.0,0.00016712,2]
[363464453,1748731839441,-740.72,0.00016712,2]
[363464456,1748731839451,-469.94,0.00016712,2]
[363464458,1748731839462,-177.06,0.00016712,2]
[363464460,1748731839473,-430.0,0.00016712,2]
[363464462,1748731839483,-561.13,0.00016712,2]
[363464464,1748731839493,-903.79,0.00016712,2]
[363464466,1748731839503,-430.0,0.00016712,2]
[363464468,1748731839513,-488.68,0.00016712,2]
[363464470,1748731839523,-585.11,0.00016712,2]
[363464472,1748731839532,-430.0,0.00016712,2]
[363464474,1748731839542,-580.16,0.00016712,2]
[363464476,1748731839553,-1165.58,0.00016712,2]
[363464478,1748731839563,-531.57,0.00016712,2]
[363464480,1748731839572,-430.0,0.00016712,2]
[363464482,1748731839583,-430.0,0.00016712,2]
[363464484,1748731839592,-392.19,0.00016712,2]
[363464487,1748731839602,-430.0,0.00016712,2]
[363464489,1748731839612,-430.0,0.00016712,2]
[363464491,1748731839621,-430.0,0.00016712,2]
[363464493,1748731839631,-430.0,0.00016712,2]
[363464495,1748731839640,-430.0,0.00016712,2]
[363464497,1748731839650,-1165.48,0.00016712,2]
[363464499,1748731839660,-930.11,0.00016712,2]
[363464501,1748731839670,-489.19,0.00016985,2]
[363464503,1748731839679,-339.258186,0.00016986,2]
[363464505,1748731839688,-339.258186,0.00016986,2]
[363464507,1748731839699,-339.258186,0.00016986,2]
[363464509,1748731839709,-339.258186,0.00016986,2]
[363464511,1748731839719,-430.0,0.00016986,2]
[363464513,1748731839729,-430.0,0.00016986,2]
[363464515,1748731839739,-430.0,0.00016986,2]
[363464517,1748731839749,-219.73,0.00016986,2]
[363464519,1748731839759,-430.0,0.00016986,2]
[363464521,1748731839770,-430.0,0.00016986,2]
[363464524,1748731839784,-495.05,0.00016986,2]
[363464526,1748731839794,-470.0,0.00016986,2]
[363464528,1748731839804,-430.0,0.00016986,2]
[363464530,1748731839815,-1376.62,0.00016986,2]
[363464532,1748731839826,-430.0,0.00016986,2]
[363464534,1748731839835,-1359.28,0.00016986,2]
[363464536,1748731839845,-246.04,0.00016986,2]
[363464538,1748731839855,-464.91109424,0.00016986,2]
[363464540,1748731839865,-430.0,0.00016986,2]
[363464542,1748731839875,-430.0,0.00016986,2]
[363464544,1748731839885,-430.0,0.00016986,2]
[363464546,1748731839894,-430.0,0.00016986,2]
[363464548,1748731839904,-430.0,0.00016986,2]
[363464550,1748731839914,-1856.94,0.00016986,2]
[363464552,1748731839924,-634.74,0.00016986,2]
[363464554,1748731839934,-430.0,0.00016986,2]
[363464556,1748731839944,-434.33,0.00016986,2]
[363464558,1748731839954,-430.0,0.00016986,2]
[363464560,1748731839964,-371.7,0.00016986,2]
[363464562,1748731839974,-666.58,0.00016986,2]
[363464564,1748731839984,-430.0,0.00016986,2]
[363464566,1748731839994,-457.35,0.00016986,2]
[363464568,1748731840005,-308.9,0.00016986,2]
[363464570,1748731840015,-740.72,0.00016986,2]
[363464573,1748731840024,-469.94,0.00016986,2]
[363464575,1748731840035,-343.27,0.00016986,2]
[363464577,1748731840045,-903.79,0.00016986,2]
[363464579,1748731840054,-430.0,0.00016986,2]
[363464581,1748731840064,-488.68,0.00016986,2]
[363464583,1748731840074,-585.11,0.00016986,2]
[363464585,1748731840084,-430.0,0.00016986,2]
[363464587,1748731840094,-580.16,0.00016986,2]
[363464589,1748731840104,-1165.58,0.00016986,2]
[363464591,1748731840114,-430.0,0.00016986,2]
[363464593,1748731840124,-430.0,0.00016986,2]
[363464595,1748731840134,-237.85,0.00016986,2]
[363464597,1748731840144,-430.0,0.00016986,2]
[363464599,1748731840153,-430.0,0.00016986,2]
[363464601,1748731840163,-430.0,0.00016986,2]
[363464603,1748731840173,-430.0,0.00016986,2]
[363464605,1748731840183,-1165.48,0.00016986,2]
[363464607,1748731840193,-930.11,0.00016986,2]
[363464609,1748731840202,-213.49308516,0.0001716,2]
[363464611,1748731840212,-430.0,0.0001726,2]
[363464613,1748731840222,-430.0,0.0001726,2]
[363464615,1748731840232,-430.0,0.0001726,2]
[363464617,1748731840242,-430.0,0.0001726,2]
[363464620,1748731840252,-1376.62,0.0001726,2]
[363464622,1748731840262,-430.0,0.0001726,2]
[363464624,1748731840271,-1359.28,0.0001726,2]
[363464625,1748731840280,-430.0,0.0001726,2]
[363464626,1748731840291,-430.0,0.0001726,2]
[363464627,1748731840301,-430.0,0.0001726,2]
[363464628,1748731840310,-1856.94,0.0001726,2]
[363464629,1748731840320,-634.74,0.0001726,2]
[363464630,1748731840329,-430.0,0.0001726,2]
[363464631,1748731840339,-434.33,0.0001726,2]
[363464632,1748731840349,-430.0,0.0001726,2]
[363464633,1748731840359,-666.58,0.0001726,2]
[363464634,1748731840369,-430.0,0.0001726,2]
[363464635,1748731840379,-457.35,0.0001726,2]
[363464637,1748731840388,-740.72,0.0001726,2]
[363464639,1748731840398,-469.94,0.0001726,2]
[363464641,1748731840410,-903.79,0.0001726,2]
[363464643,1748731840419,-430.0,0.0001726,2]
[363464645,1748731840429,-488.68,0.0001726,2]
[363464647,1748731840439,-585.11,0.0001726,2]
[363464649,1748731840448,-430.0,0.0001726,2]
[363464651,1748731840458,-580.16,0.0001726,2]
[363464653,1748731840470,-1165.58,0.0001726,2]
[363464655,1748731840480,-430.0,0.0001726,2]
[363464657,1748731840490,-430.0,0.0001726,2]
[363464659,1748731840500,-430.0,0.0001726,2]
[363464661,1748731840510,-430.0,0.0001726,2]
[363464663,1748731840520,-430.0,0.0001726,2]
[363464665,1748731840529,-1165.48,0.0001726,2]
[363464667,1748731840539,-500.0,0.00017465,2]
[363464669,1748731840550,-339.258186,0.00017534,2]
[363464671,1748731840559,-339.258186,0.00017534,2]
[363464673,1748731840570,-430.0,0.00017534,2]
[363464675,1748731840580,-393.64829231,0.00017534,2]
[363464677,1748731840589,-457.98,0.00017534,2]
[363464679,1748731840599,-430.0,0.00017534,2]
[363464681,1748731840608,-1376.62,0.00017534,2]
[363464683,1748731840618,-430.0,0.00017534,2]
[363464685,1748731840628,-1359.28,0.00017534,2]
[363464687,1748731840638,-430.0,0.00017534,2]
[363464689,1748731840648,-430.0,0.00017534,2]
[363464691,1748731840658,-430.0,0.00017534,2]
[363464693,1748731840668,-1856.94,0.00017534,2]
[363464695,1748731840678,-634.74,0.00017534,2]
[363464697,1748731840687,-340.89,0.00017534,2]
[363464700,1748731840697,-434.33,0.00017534,2]
[363464701,1748731840707,-430.0,0.00017534,2]
[363464704,1748731840717,-666.58,0.00017534,2]
[363464706,1748731840727,-430.0,0.00017534,2]
[363464708,1748731840737,-457.35,0.00017534,2]
[363464710,1748731840747,-740.72,0.00017534,2]
[363464712,1748731840757,-469.94,0.00017534,2]
[363464714,1748731840766,-903.79,0.00017534,2]
[363464716,1748731840776,-430.0,0.00017534,2]
[363464718,1748731840786,-488.68,0.00017534,2]
[363464720,1748731840796,-585.11,0.00017534,2]
[363464722,1748731840805,-430.0,0.00017534,2]
[363464724,1748731840815,-580.16,0.00017534,2]
[363464726,1748731840826,-1165.58,0.00017534,2]
[363464728,1748731840835,-430.0,0.00017534,2]
[363464730,1748731840845,-573.27,0.00017534,2]
[363464732,1748731840855,-430.0,0.00017534,2]
[363464734,1748731840864,-430.0,0.00017534,2]
[363464736,1748731840874,-1165.48,0.00017534,2]
[363464738,1748731840884,-430.0,0.00017808,2]
[363464740,1748731840894,-1376.62,0.00017808,2]
[363464742,1748731840904,-272.24,0.00017808,2]
[363464744,1748731840914,-1359.28,0.00017808,2]
[363464746,1748731840924,-430.0,0.00017808,2]
[363464748,1748731840933,-430.0,0.00017808,2]
[363464750,1748731840943,-430.0,0.00017808,2]
[363464752,1748731840952,-1856.94,0.00017808,2]
[363464754,1748731840962,-634.74,0.00017808,2]
[363464756,1748731840973,-434.33,0.00017808,2]
[363464758,1748731840982,-430.0,0.00017808,2]
[363464760,1748731840992,-666.58,0.00017808,2]
[363464762,1748731841002,-430.0,0.00017808,2]
[363464764,1748731841011,-457.35,0.00017808,2]
[363464766,1748731841021,-740.72,0.00017808,2]
[363464768,1748731841031,-469.94,0.00017808,2]
[363464770,1748731841040,-903.79,0.00017808,2]
[363464772,1748731841050,-430.0,0.00017808,2]
[363464774,1748731841059,-488.68,0.00017808,2]
[363464776,1748731841069,-585.11,0.00017808,2]
[363464778,1748731841079,-430.0,0.00017808,2]
[363464780,1748731841089,-580.16,0.00017808,2]
[363464783,1748731841101,-1165.58,0.00017808,2]
[363464785,1748731841111,-430.0,0.00017808,2]
[363464787,1748731841120,-430.0,0.00017808,2]
[363464789,1748731841130,-430.0,0.00017808,2]
[363464791,1748731841143,-1265.36490975,0.000179,2]
[363464793,1748731841153,-160.0,0.00018011,2]
[363464795,1748731841163,-160.0,0.00018011,2]
[363464797,1748731841172,-842.5625,0.00018011,2]
[363464799,1748731841182,-212.77096907,0.00018011,2]
[363464801,1748731841191,-229.3428821,0.00018011,2]
[363464803,1748731841201,-423.4608169,0.00018011,2]
[363464805,1748731841221,-513.19229648,0.00018013,2]
[363464807,1748731841230,-160.0,0.00018015,2]
[363464809,1748731841240,-2834.32,0.00018035,2]
[363464828,1748731841416,-339.258186,0.00018082,2]
[363464830,1748731841428,-339.258186,0.00018082,2]
[363464832,1748731841438,-430.0,0.00018082,2]
[363464834,1748731841448,-1376.62,0.00018082,2]
[363464836,1748731841457,-1359.28,0.00018082,2]
[363464838,1748731841468,-430.0,0.00018082,2]
[363464840,1748731841477,-518.78618381,0.00018082,2]
[363464842,1748731841487,-430.0,0.00018082,2]
[363464844,1748731841496,-1856.94,0.00018082,2]
[363464846,1748731841506,-634.74,0.00018082,2]
[363464848,1748731841520,-434.33,0.00018082,2]
[363464850,1748731841531,-430.0,0.00018082,2]
[363464852,1748731841542,-666.58,0.00018082,2]
[363464854,1748731841552,-430.0,0.00018082,2]
[363464856,1748731841562,-457.35,0.00018082,2]
[363464858,1748731841571,-740.72,0.00018082,2]
[363464860,1748731841581,-469.94,0.00018082,2]
[363464862,1748731841590,-903.79,0.00018082,2]
[363464864,1748731841600,-415.43,0.00018082,2]
[363464866,1748731841610,-488.68,0.00018082,2]
[363464868,1748731841619,-585.11,0.00018082,2]
[363464870,1748731841629,-430.0,0.00018082,2]
[363464872,1748731841639,-580.16,0.00018082,2]
[363464874,1748731841649,-1165.58,0.00018082,2]
[363464876,1748731841658,-430.0,0.00018082,2]
[363464878,1748731841667,-430.0,0.00018082,2]
[363464880,1748731841677,-430.0,0.00018082,2]
[363464882,1748731841686,-1265.36490964,0.00018141,2]
[363464884,1748731841696,-430.0,0.00018356,2]
[363464886,1748731841705,-1376.62,0.00018356,2]
[363464888,1748731841716,-1359.28,0.00018356,2]
[363464890,1748731841725,-430.0,0.00018356,2]
[363464893,1748731841738,-430.0,0.00018356,2]
[363464895,1748731841748,-1856.94,0.00018356,2]
[363464897,1748731841757,-634.74,0.00018356,2]
[363464899,1748731841767,-434.33,0.00018356,2]
[363464901,1748731841777,-430.0,0.00018356,2]
[363464903,1748731841787,-666.58,0.00018356,2]
[363464905,1748731841796,-430.0,0.00018356,2]
[363464907,1748731841805,-457.35,0.00018356,2]
[363464909,1748731841814,-740.72,0.00018356,2]
[363464910,1748731841824,-469.94,0.00018356,2]
[363464912,1748731841835,-903.79,0.00018356,2]
[363464914,1748731841845,-488.68,0.00018356,2]
[363464916,1748731841854,-585.11,0.00018356,2]
[363464918,1748731841864,-430.0,0.00018356,2]
[363464920,1748731841874,-580.16,0.00018356,2]
[363464923,1748731841884,-1165.58,0.00018356,2]
[363464924,1748731841894,-430.0,0.00018356,2]
[363464927,1748731841904,-430.0,0.00018356,2]